[Event "Championnat du monde jeunes U12F"]
[Date "2024.11.22"]
[White "Venskaya, Nika"]
[Black "Amanzhol, Khanzada"]
[WhiteElo "1871"]
[BlackElo "1780"]
[Round "7.1"]
[Result "1-0"]
[TimeControl "5400+30"]

1. d4 {[%clk 1:30:59]} 1... Nf6 {[%clk 1:30:30]} 2. Nf3 {[%clk 1:30:11]} 2... e6
{[%clk 1:30:54]} 3. c4 {[%clk 1:30:31]} 3... d5 {[%clk 1:30:58]} 4. g3 {[%clk
1:30:31]} 4... Bb4+ {[%clk 1:30:47]} 5. Bd2 {[%clk 1:30:35]} 5... a5 {[%clk
1:31:04]} 6. Bg2 {[%clk 1:29:44]} 6... dxc4 {[%clk 1:30:05]} 7. a4 {[%clk
1:27:17]} 7... c6 {[%clk 1:21:36]} 8. Qc2 {[%clk 1:22:22]} 8... Bxd2+ {[%clk
1:19:07]} 9. Nbxd2 {[%clk 1:20:27]} 9... b5 {[%clk 1:17:49]} 10. e4 {[%clk
1:04:32]} 10... Na6 {[%clk 1:15:06]} 11. O-O {[%clk 1:04:05]} 11... Nb4 {[%clk
1:10:17]} 12. Qc3 {[%clk 1:02:22]} 12... O-O {[%clk 1:08:54]} 13. Ne5 {[%clk
0:48:02]} 13... Qb6 {[%clk 1:05:50]} 14. b3 {[%clk 0:45:41]} 14... Rd8 {[%clk
1:01:46]} 15. axb5 {[%clk 0:31:21]} 15... cxb5 {[%clk 0:54:01]} 16. bxc4 {[%clk
0:30:15]} 16... bxc4 {[%clk 0:52:05]} 17. Ndxc4 {[%clk 0:27:18]} 17... Qc7
{[%clk 0:46:57]} 18. Rfc1 {[%clk 0:19:44]} 18... Bb7 {[%clk 0:47:06]} 19. Qe3
{[%clk 0:18:31]} 19... a4 {[%clk 0:41:33]} 20. g4 {[%clk 0:16:20]} 20... Ne8
{[%clk 0:38:25]} 21. Rab1 {[%clk 0:13:20]} 21... f6 {[%clk 0:30:33]} 22. Nf3
{[%clk 0:09:05]} 22... Na6 {[%clk 0:25:03]} 23. Nb6 {[%clk 0:09:18]} 23... Qe7
{[%clk 0:25:07]} 24. Nxa8 {[%clk 0:09:30]} 24... Rxa8 {[%clk 0:25:29]} 25. Ra1
{[%clk 0:04:00]} 25... Nac7 {[%clk 0:25:06]} 26. Rc5 {[%clk 0:03:31]} 26... Nd6
{[%clk 0:24:24]} 27. Nd2 {[%clk 0:03:51]} 27... Ndb5 {[%clk 0:22:27]} 28. d5
{[%clk 0:02:17]} 28... Qd7 {[%clk 0:17:42]} 29. Nc4 {[%clk 0:02:19]} 29... Ra6
{[%clk 0:18:08]} 30. Na3 {[%clk 0:02:14]} 30... Nd6 {[%clk 0:16:11]} 31. Rac1
{[%clk 0:02:12]} 31... Nde8 {[%clk 0:15:49]} 32. Qg3 {[%clk 0:02:04]} 32... e5
{[%clk 0:15:43]} 33. g5 {[%clk 0:01:04]} 33... Kh8 {[%clk 0:15:17]} 34. h4
{[%clk 0:00:50]} 34... Rb6 {[%clk 0:15:26]} 35. R1c3 {[%clk 0:00:36]} 35... Na6
{[%clk 0:15:16]} 36. Bh3 {[%clk 0:00:42]} 36... Qe7 {[%clk 0:15:19]} 37. R5c4
{[%clk 0:00:56]} 37... Rb4 {[%clk 0:15:04]} 38. Bc8 {[%clk 0:00:35]} 38... Nd6
{[%clk 0:14:59]} 39. Bxb7 {[%clk 0:00:36]} 39... Qxb7 {[%clk 0:14:42]} 40. Rxb4
{[%clk 0:00:33]} 40... Qxb4 {[%clk 0:15:06]} 41. Qe3 {[%clk 0:00:56]} 41... Qb7
{[%clk 0:13:35]} 42. Rc6 {[%clk 0:01:02]} 42... Nc8 {[%clk 0:13:25]} 43. gxf6
{[%clk 0:01:10]} 43... gxf6 {[%clk 0:12:56]} 44. Qh6 {[%clk 0:01:33]} 44... Ne7
{[%clk 0:11:58]} 45. Qxf6+ {[%clk 0:01:55]} 45... Kg8 {[%clk 0:12:24]} 46. Rxa6
{[%clk 0:02:13]} 46... Nc8 {[%clk 0:12:41]} 47. Rc6 {[%clk 0:02:10]} 47... Ne7
{[%clk 0:12:54]} 48. Re6 {[%clk 0:02:31]} 48... Qb3 {[%clk 0:12:39]} 49. Rxe7
{[%clk 0:01:52]} 49... Qd1+ {[%clk 0:13:04]} 50. Kh2 {[%clk 0:02:18]} 50... Qh5
{[%clk 0:13:26]} 51. Qg7# {[%clk 0:02:43]} 1-0

[Variant "Standard"]
[Site "Europe Echecs"]

[Event "Championnat du monde jeunes U12F"]
[Date "2024.11.22"]
[White "Buyankhishig, Batpelden"]
[Black "Allahverdi, Zahra"]
[WhiteElo "1867"]
[BlackElo "1718"]
[Round "7.2"]
[Result "0-1"]
[TimeControl "5400+30"]

1. d4 {[%clk 1:30:56]} 1... Nf6 {[%clk 1:30:45]} 2. c4 {[%clk 1:31:09]} 2... e6
{[%clk 1:30:59]} 3. Nf3 {[%clk 1:31:07]} 3... Bb4+ {[%clk 1:30:45]} 4. Nbd2
{[%clk 1:31:04]} 4... c5 {[%clk 1:29:12]} 5. a3 {[%clk 1:24:13]} 5... Bxd2+
{[%clk 1:26:42]} 6. Bxd2 {[%clk 1:18:46]} 6... b6 7. dxc5 {[%clk 1:08:48]} 7...
bxc5 {[%clk 1:23:17]} 8. Bf4 {[%clk 1:08:47]} 8... Qa5+ {[%clk 1:09:44]} 9. Qd2
{[%clk 1:01:14]} 9... Qxd2+ {[%clk 1:08:57]} 10. Nxd2 {[%clk 1:01:19]} 10... Ke7
{[%clk 1:07:43]} 11. e4 {[%clk 0:58:14]} 11... Nc6 {[%clk 1:01:20]} 12. e5
{[%clk 0:52:42]} 12... Nh5 {[%clk 0:59:11]} 13. Be3 {[%clk 0:52:56]} 13... Nxe5
{[%clk 0:58:22]} 14. Be2 {[%clk 0:51:52]} 14... Nf6 {[%clk 0:55:08]} 15. f4
{[%clk 0:48:43]} 15... Ng6 {[%clk 0:52:03]} 16. Bxc5+ {[%clk 0:48:11]} 16... d6
{[%clk 0:51:42]} 17. Be3 {[%clk 0:48:26]} 17... Nh4 {[%clk 0:48:34]} 18. O-O
{[%clk 0:46:18]} 18... Bb7 {[%clk 0:47:13]} 19. g3 {[%clk 0:42:29]} 19... Nf5
{[%clk 0:46:17]} 20. Bf2 {[%clk 0:42:48]} 20... h5 {[%clk 0:45:38]} 21. c5
{[%clk 0:38:44]} 21... Ng4 {[%clk 0:44:20]} 22. cxd6+ {[%clk 0:37:26]} 22...
Kxd6 {[%clk 0:43:31]} 23. Nc4+ {[%clk 0:35:55]} 23... Ke7 {[%clk 0:40:01]} 24.
Bc5+ {[%clk 0:34:49]} 24... Kf6 {[%clk 0:36:41]} 25. Bxg4 {[%clk 0:29:30]} 25...
hxg4 {[%clk 0:36:51]} 26. Ne5 {[%clk 0:29:52]} 26... Nh6 {[%clk 0:29:11]} 27.
Rfd1 {[%clk 0:27:21]} 27... Bd5 {[%clk 0:27:21]} 28. Rac1 {[%clk 0:24:19]} 28...
Kf5 {[%clk 0:24:54]} 29. Kf2 {[%clk 0:19:22]} 29... f6 {[%clk 0:16:45]} 30. Nc4
{[%clk 0:18:04]} 30... Kg6 {[%clk 0:15:56]} 31. Ne3 {[%clk 0:17:23]} 31... Bf3
{[%clk 0:15:51]} 32. Rd2 {[%clk 0:14:23]} 32... Nf7 {[%clk 0:10:42]} 33. h4
{[%clk 0:13:51]} 33... Rhd8 {[%clk 0:10:00]} 34. Rcc2 {[%clk 0:08:48]} 34... Be4
{[%clk 0:06:20]} 35. Rxd8 {[%clk 0:09:04]} 35... Rxd8 {[%clk 0:06:06]} 36. Rc4
{[%clk 0:09:23]} 36... Bf3 {[%clk 0:06:06]} 37. Ke1 {[%clk 0:06:48]} 37... e5
{[%clk 0:03:55]} 38. f5+ {[%clk 0:05:21]} 38... Kh7 {[%clk 0:03:34]} 39. Ra4
{[%clk 0:03:33]} 39... e4 {[%clk 0:03:19]} 40. Rd4 {[%clk 0:02:16]} 40... Rc8
{[%clk 0:02:05]} 41. b4 {[%clk 0:01:46]} 41... Rc7 {[%clk 0:01:24]} 42. Kd2
{[%clk 0:01:44]} 42... Ne5 {[%clk 0:01:31]} 43. Bd6 {[%clk 0:01:42]} 43... Rc6
{[%clk 0:01:26]} 44. Bxe5 {[%clk 0:02:01]} 44... fxe5 {[%clk 0:01:52]} 45. Rd5
{[%clk 0:02:11]} 45... Ra6 {[%clk 0:02:12]} 46. Ra5 {[%clk 0:00:53]} 46... Rd6+
{[%clk 0:02:18]} 47. Kc2 {[%clk 0:00:50]} 47... Rd3 {[%clk 0:02:08]} 48. Nc4
{[%clk 0:00:46]} 48... Bd1+ {[%clk 0:02:29]} 49. Kc1 {[%clk 0:00:58]} 49... Bb3
{[%clk 0:02:16]} 50. Nxe5 {[%clk 0:01:09]} 50... Rd1+ {[%clk 0:01:48]} 51. Kb2
{[%clk 0:01:28]} 51... e3 {[%clk 0:02:05]} 52. Nxg4 {[%clk 0:00:36]} 52... e2
{[%clk 0:02:19]} 53. Re5 {[%clk 0:01:05]} 53... Bc4 {[%clk 0:02:20]} 54. Kc3
{[%clk 0:00:51]} 54... Ba6 {[%clk 0:01:54]} 55. b5 {[%clk 0:00:36]} 55... Bxb5
{[%clk 0:02:18]} 56. Kb4 {[%clk 0:00:39]} 56... a6 {[%clk 0:01:41]} 57. a4
{[%clk 0:00:53]} 57... e1=Q+ {[%clk 0:00:44]} 58. Rxe1 {[%clk 0:01:20]} 58...
Rxe1 {[%clk 0:01:05]} 59. axb5 {[%clk 0:01:47]} 59... Re4+ {[%clk 0:01:28]} 60.
Ka5 {[%clk 0:01:30]} 60... Rxg4 {[%clk 0:01:03]} 61. bxa6 {[%clk 0:00:37]} 61...
Rxg3 {[%clk 0:01:28]} 62. a7 {[%clk 0:01:03]} 62... Ra3+ {[%clk 0:01:53]} 63.
Kb6 {[%clk 0:01:31]} 63... Kh6 {[%clk 0:02:14]} 64. Kb7 {[%clk 0:01:58]} 64...
Kh5 {[%clk 0:02:40]} 65. a8=Q {[%clk 0:02:24]} 65... Rxa8 {[%clk 0:03:05]} 66.
Kxa8 {[%clk 0:02:51]} 66... Kxh4 {[%clk 0:03:31]} 67. Kb7 {[%clk 0:03:16]} 67...
Kg5 {[%clk 0:03:57]} 0-1

[Variant "Standard"]
[Site "Europe Echecs"]

[Event "Championnat du monde jeunes U12F"]
[Date "2024.11.22"]
[White "Mozolevskaya, Tatyana Nik"]
[Black "Xue, Tianhao"]
[WhiteElo "1775"]
[BlackElo "1835"]
[Round "7.3"]
[Result "1/2-1/2"]
[TimeControl "5400+30"]

1. Nf3 {[%clk 1:30:53]} 1... d5 {[%clk 1:30:55]} 2. d4 Nf6 {[%clk 1:31:16]} 3.
c4 {[%clk 1:31:22]} 3... e6 {[%clk 1:31:43]} 4. g3 {[%clk 1:31:45]} 4... Be7
{[%clk 1:32:10]} 5. Bg2 {[%clk 1:32:11]} 5... O-O {[%clk 1:32:36]} 6. O-O {[%clk
1:32:36]} 6... dxc4 {[%clk 1:33:04]} 7. Qc2 {[%clk 1:29:35]} 7... a6 {[%clk
1:33:30]} 8. a4 {[%clk 1:28:29]} 8... h6 {[%clk 1:33:55]} 9. Qxc4 {[%clk
1:27:49]} 9... b5 {[%clk 1:34:17]} 10. Qd3 {[%clk 1:27:46]} 10... Bb7 {[%clk
1:33:23]} 11. axb5 {[%clk 1:15:21]} 11... Be4 {[%clk 1:30:30]} 12. Qb3 {[%clk
1:14:49]} 12... Bd5 {[%clk 1:28:19]} 13. Qd1 {[%clk 1:14:38]} 13... axb5 {[%clk
1:28:17]} 14. Rxa8 {[%clk 1:15:03]} 14... Bxa8 {[%clk 1:28:43]} 15. Bf4 {[%clk
1:12:51]} 15... Bd6 {[%clk 1:21:26]} 16. Bxd6 {[%clk 1:09:59]} 16... cxd6 {[%clk
1:21:26]} 17. Qb3 {[%clk 1:08:53]} 17... Qb6 {[%clk 1:16:27]} 18. Na3 {[%clk
1:05:17]} 18... Bxf3 {[%clk 1:09:21]} 19. Bxf3 {[%clk 1:05:20]} 19... Qxd4
{[%clk 1:09:08]} 20. Nxb5 {[%clk 1:04:34]} 20... Qb6 {[%clk 1:08:13]} 21. Rc1
{[%clk 0:57:06]} 21... d5 {[%clk 1:07:29]} 22. e3 {[%clk 0:57:12]} 22... Nbd7
{[%clk 1:06:44]} 23. Be2 {[%clk 0:57:29]} 23... Rb8 {[%clk 1:00:46]} 24. Qa3
{[%clk 0:54:45]} 24... Ne5 {[%clk 0:54:16]} 25. Rc7 {[%clk 0:46:59]} 25... Re8
{[%clk 0:36:10]} 26. b3 {[%clk 0:39:06]} 26... Ne4 {[%clk 0:33:03]} 27. Qc1
{[%clk 0:32:25]} 27... Nd6 {[%clk 0:28:50]} 28. Nd4 {[%clk 0:29:28]} 28... Ndc4
{[%clk 0:27:18]} 29. Nb5 {[%clk 0:26:54]} 29... Qxb5 {[%clk 0:23:57]} 30. bxc4
{[%clk 0:27:16]} 30... dxc4 {[%clk 0:23:04]} 31. Bxc4 {[%clk 0:27:09]} 31...
Nf3+ {[%clk 0:21:16]} 32. Kg2 {[%clk 0:26:19]} 32... Qf5 {[%clk 0:19:41]} 33.
Be2 {[%clk 0:22:51]} 33... Ng5 {[%clk 0:19:18]} 34. h4 {[%clk 0:20:44]} 34...
Ne4 {[%clk 0:16:55]} 35. Bf3 {[%clk 0:20:42]} 35... Nf6 {[%clk 0:15:55]} 36. Rc8
{[%clk 0:16:56]} 36... Qb5 {[%clk 0:14:27]} 37. Rc5 {[%clk 0:15:15]} 37... Qb4
{[%clk 0:13:39]} 38. Rc4 {[%clk 0:14:18]} 38... Qb6 {[%clk 0:13:51]} 39. Rc8
{[%clk 0:14:24]} 39... Qb5 {[%clk 0:14:13]} 40. Qc7 {[%clk 0:14:28]} 40... Rxc8
{[%clk 0:14:31]} 41. Qxc8+ {[%clk 0:14:55]} 41... Qe8 {[%clk 0:14:54]} 42. Qxe8+
{[%clk 0:15:14]} 1/2-1/2

[Variant "Standard"]
[Site "Europe Echecs"]

[Event "Championnat du monde jeunes U12F"]
[Date "2024.11.22"]
[White "Tong Thai Hoang An"]
[Black "Pavithra R V"]
[WhiteElo "1869"]
[BlackElo "1854"]
[Round "7.4"]
[Result "1-0"]
[TimeControl "5400+30"]

1. d4 {[%clk 1:30:56]} 1... d5 {[%clk 1:30:58]} 2. c4 {[%clk 1:31:18]} 2... e6
{[%clk 1:31:25]} 3. Nf3 {[%clk 1:31:43]} 3... Nf6 {[%clk 1:31:50]} 4. g3 {[%clk
1:31:50]} 4... Be7 {[%clk 1:32:14]} 5. Bg2 {[%clk 1:31:31]} 5... c6 {[%clk
1:32:22]} 6. Qc2 {[%clk 1:27:21]} 6... O-O {[%clk 1:32:40]} 7. O-O {[%clk
1:23:35]} 7... Nbd7 {[%clk 1:32:13]} 8. Nbd2 {[%clk 1:23:20]} 8... dxc4 {[%clk
1:17:28]} 9. Nxc4 {[%clk 1:20:52]} 9... Nb6 {[%clk 1:14:08]} 10. Nce5 {[%clk
1:17:20]} 10... Bd6 {[%clk 1:11:44]} 11. Rd1 {[%clk 1:13:47]} 11... Qc7 {[%clk
1:09:31]} 12. Bd2 {[%clk 1:08:39]} 12... h6 {[%clk 1:05:24]} 13. Rac1 {[%clk
1:06:50]} 13... Rd8 {[%clk 1:03:17]} 14. Ba5 {[%clk 1:00:11]} 14... Qe7 {[%clk
0:59:43]} 15. a3 {[%clk 0:55:23]} 15... Bc7 {[%clk 0:56:12]} 16. e4 {[%clk
0:49:55]} 16... Bd7 {[%clk 0:50:55]} 17. Qe2 {[%clk 0:45:37]} 17... Rdc8 {[%clk
0:47:02]} 18. Nd3 {[%clk 0:41:04]} 18... Qe8 {[%clk 0:44:07]} 19. Nc5 {[%clk
0:39:07]} 19... Rab8 {[%clk 0:43:42]} 20. Ne5 {[%clk 0:36:26]} 20... Qe7 {[%clk
0:41:34]} 21. Bc3 {[%clk 0:27:17]} 21... Be8 {[%clk 0:39:54]} 22. b4 {[%clk
0:25:16]} 22... Nfd7 {[%clk 0:33:01]} 23. Ng4 {[%clk 0:21:03]} 23... f6 {[%clk
0:29:30]} 24. Ne3 {[%clk 0:20:59]} 24... Bf7 {[%clk 0:24:16]} 25. Bh3 {[%clk
0:17:43]} 25... Rd8 {[%clk 0:21:07]} 26. Ba1 {[%clk 0:14:33]} 26... Nxc5 {[%clk
0:16:57]} 27. dxc5 {[%clk 0:14:12]} 27... Nd7 {[%clk 0:17:10]} 28. Nc4 {[%clk
0:12:14]} 28... b6 {[%clk 0:16:01]} 29. Nd6 {[%clk 0:11:54]} 29... b5 {[%clk
0:11:06]} 30. f4 {[%clk 0:09:54]} 30... Nf8 {[%clk 0:07:47]} 31. e5 {[%clk
0:09:25]} 31... f5 {[%clk 0:07:48]} 32. Bg2 {[%clk 0:09:31]} 32... Be8 {[%clk
0:07:38]} 33. Nxe8 {[%clk 0:09:04]} 33... Qxe8 {[%clk 0:08:04]} 34. Qf3 {[%clk
0:09:25]} 34... Rd5 {[%clk 0:08:06]} 35. Qe2 {[%clk 0:09:18]} 35... Rdd8 {[%clk
0:08:14]} 36. Bd4 {[%clk 0:09:15]} 36... a5 {[%clk 0:07:28]} 37. Bf3 {[%clk
0:08:33]} 37... Ra8 {[%clk 0:06:09]} 38. Qg2 {[%clk 0:08:28]} 38... Ra6 {[%clk
0:06:37]} 39. Bc3 {[%clk 0:08:22]} 39... a4 {[%clk 0:06:29]} 40. Be1 {[%clk
0:07:44]} 40... g5 {[%clk 0:04:02]} 41. h3 {[%clk 0:04:09]} 41... Kh8 {[%clk
0:02:48]} 42. Rxd8 {[%clk 0:03:37]} 42... Bxd8 {[%clk 0:03:04]} 43. fxg5 {[%clk
0:03:41]} 43... hxg5 {[%clk 0:03:09]} 44. g4 {[%clk 0:03:14]} 44... Kg8 {[%clk
0:01:18]} 45. Rd1 {[%clk 0:03:24]} 45... Nh7 {[%clk 0:01:26]} 46. Rd6 {[%clk
0:03:29]} 46... fxg4 {[%clk 0:01:07]} 47. hxg4 {[%clk 0:03:31]} 47... Bc7 {[%clk
0:01:00]} 48. Rxc6 {[%clk 0:02:55]} 48... Rxc6 {[%clk 0:01:06]} 49. Bxc6 {[%clk
0:03:17]} 49... Qb8 {[%clk 0:01:34]} 50. Qe4 {[%clk 0:03:16]} 50... Nf8 {[%clk
0:01:32]} 51. Bc3 {[%clk 0:03:22]} 51... Kg7 {[%clk 0:01:49]} 52. Qd3 {[%clk
0:02:57]} 52... Bxe5 {[%clk 0:01:49]} 53. Bxb5 {[%clk 0:03:08]} 53... Kg8 {[%clk
0:01:55]} 54. Bxe5 {[%clk 0:03:00]} 54... Qxe5 {[%clk 0:02:22]} 55. Bxa4 {[%clk
0:03:14]} 55... Qe1+ {[%clk 0:01:35]} 56. Kg2 {[%clk 0:03:40]} 56... Kg7 {[%clk
0:01:46]} 57. Bc2 {[%clk 0:04:01]} 57... Qh4 {[%clk 0:01:46]} 58. Qg3 {[%clk
0:04:19]} 58... Qh6 {[%clk 0:01:53]} 59. Qe5+ {[%clk 0:04:23]} 59... Kg8 {[%clk
0:02:14]} 60. c6 {[%clk 0:04:24]} 60... Qh4 {[%clk 0:02:15]} 61. Qe4 {[%clk
0:04:23]} 61... Qh6 {[%clk 0:01:19]} 62. c7 {[%clk 0:04:45]} 62... Kg7 {[%clk
0:01:38]} 63. c8=Q {[%clk 0:05:01]} 63... Ng6 {[%clk 0:02:04]} 64. Qd7+ {[%clk
0:05:09]} 64... Kg8 {[%clk 0:02:28]} 65. Qdxe6+ {[%clk 0:05:31]} 65... Kh8
{[%clk 0:02:53]} 66. Qe8+ {[%clk 0:05:56]} 66... Nf8 {[%clk 0:03:14]} 67. Q4e5+
{[%clk 0:06:13]} 67... Kg8 {[%clk 0:03:38]} 68. Bb3+ {[%clk 0:06:36]} 68... Kh7
{[%clk 0:04:01]} 69. Qf7+ {[%clk 0:07:00]} 69... Qg7 {[%clk 0:04:27]} 70. Qexg7#
{[%clk 0:07:24]} 1-0

[Variant "Standard"]
[Site "Europe Echecs"]

[Event "Championnat du monde jeunes U12F"]
[Date "2024.11.22"]
[White "Tran Le Vy"]
[Black "Siddhi Rao"]
[WhiteElo "1854"]
[BlackElo "1677"]
[Round "7.5"]
[Result "1-0"]
[TimeControl "5400+30"]

1. e4 {[%clk 1:30:55]} 1... e5 {[%clk 1:30:55]} 2. Nf3 {[%clk 1:31:18]} 2... Nc6
{[%clk 1:31:20]} 3. Bc4 {[%clk 1:31:40]} 3... Bc5 {[%clk 1:31:45]} 4. c3 {[%clk
1:31:50]} 4... Nf6 {[%clk 1:32:09]} 5. d4 {[%clk 1:32:07]} 5... exd4 {[%clk
1:32:34]} 6. e5 {[%clk 1:32:16]} 6... d5 {[%clk 1:33:00]} 7. Bb5 {[%clk
1:32:38]} 7... Ne4 {[%clk 1:33:24]} 8. cxd4 {[%clk 1:32:58]} 8... Bb6 {[%clk
1:33:50]} 9. h3 {[%clk 1:20:08]} 9... O-O {[%clk 1:32:59]} 10. O-O {[%clk
1:18:57]} 10... f5 {[%clk 1:30:07]} 11. Nc3 {[%clk 1:05:58]} 11... Ne7 {[%clk
1:20:27]} 12. Re1 {[%clk 0:32:16]} 12... c6 {[%clk 1:15:20]} 13. Bd3 {[%clk
0:30:28]} 13... Qe8 {[%clk 1:13:39]} 14. g3 {[%clk 0:24:36]} 14... c5 {[%clk
1:04:56]} 15. Be3 {[%clk 0:20:19]} 15... c4 {[%clk 0:59:54]} 16. Bf1 {[%clk
0:20:37]} 16... Be6 {[%clk 0:56:51]} 17. h4 {[%clk 0:16:27]} 17... Qg6 {[%clk
0:54:14]} 18. Bf4 {[%clk 0:14:15]} 18... h6 {[%clk 0:52:40]} 19. Bh3 {[%clk
0:12:59]} 19... Rad8 {[%clk 0:51:41]} 20. a3 {[%clk 0:12:16]} 20... Qf7 {[%clk
0:46:55]} 21. Qe2 {[%clk 0:11:21]} 21... Ng6 {[%clk 0:45:44]} 22. Qe3 {[%clk
0:11:43]} 22... Nxf4 {[%clk 0:45:01]} 23. gxf4 {[%clk 0:11:10]} 23... Qh5 {[%clk
0:43:24]} 24. Kh2 {[%clk 0:09:56]} 24... Rd7 {[%clk 0:41:53]} 25. Ne2 {[%clk
0:10:14]} 25... g5 {[%clk 0:35:56]} 26. fxg5 {[%clk 0:10:23]} 26... Kh8 {[%clk
0:28:40]} 27. Nf4 {[%clk 0:08:56]} 27... Qe8 {[%clk 0:27:35]} 28. gxh6 {[%clk
0:08:54]} 28... Rh7 {[%clk 0:23:19]} 29. Ng5 {[%clk 0:08:41]} 29... Rxh6 {[%clk
0:23:18]} 30. Ngxe6 {[%clk 0:08:59]} 30... Rxe6 {[%clk 0:23:41]} 31. Nxe6 {[%clk
0:09:06]} 31... Qxe6 {[%clk 0:23:55]} 32. f3 {[%clk 0:09:31]} 32... Ng3 {[%clk
0:22:31]} 33. Rg1 {[%clk 0:08:17]} 33... Nh5 {[%clk 0:22:40]} 34. Qg5 {[%clk
0:08:42]} 34... Qf7 {[%clk 0:22:56]} 35. Qh6+ {[%clk 0:09:06]} 35... Qh7 {[%clk
0:23:21]} 36. Qxf8+ {[%clk 0:09:32]} 36... Qg8 {[%clk 0:23:47]} 37. Qxg8# {[%clk
0:09:56]} 1-0

[Variant "Standard"]
[Site "Europe Echecs"]

[Event "Championnat du monde jeunes U12F"]
[Date "2024.11.22"]
[White "Bassari, Senem Gul"]
[Black "Qiu, Laurie"]
[WhiteElo "1778"]
[BlackElo "1994"]
[Round "7.6"]
[Result "0-1"]
[TimeControl "5400+30"]

1. e4 {[%clk 1:30:49]} 1... c5 {[%clk 1:30:55]} 2. Nf3 {[%clk 1:31:03]} 2... Nc6
{[%clk 1:31:18]} 3. d4 {[%clk 1:31:20]} 3... cxd4 {[%clk 1:31:42]} 4. Nxd4
{[%clk 1:31:46]} 4... g6 {[%clk 1:32:05]} 5. c4 {[%clk 1:32:04]} 5... Nf6 {[%clk
1:32:24]} 6. Nc3 {[%clk 1:32:25]} 6... d6 {[%clk 1:32:45]} 7. Be3 {[%clk
1:32:49]} 7... Ng4 {[%clk 1:28:41]} 8. Nxc6 {[%clk 1:18:11]} 8... bxc6 {[%clk
1:28:31]} 9. Bc1 {[%clk 1:16:03]} 9... Bg7 {[%clk 1:27:18]} 10. Be2 {[%clk
1:16:10]} 10... Bxc3+ {[%clk 1:21:03]} 11. bxc3 {[%clk 1:16:18]} 11... Nf6
{[%clk 1:20:52]} 12. Qc2 {[%clk 1:12:39]} 12... O-O {[%clk 1:20:02]} 13. O-O
{[%clk 1:11:46]} 13... Be6 {[%clk 1:17:30]} 14. Bh6 {[%clk 1:06:59]} 14... Re8
{[%clk 1:17:28]} 15. Be3 {[%clk 1:04:21]} 15... Qa5 {[%clk 1:14:47]} 16. Bd4
{[%clk 1:02:53]} 16... Nd7 {[%clk 1:11:59]} 17. f4 {[%clk 0:59:20]} 17... Nb6
{[%clk 1:01:01]} 18. Bxb6 {[%clk 0:15:24]} 18... axb6 {[%clk 0:59:25]} 19. Rfb1
{[%clk 0:08:10]} 19... Reb8 {[%clk 0:49:21]} 20. Kh1 {[%clk 0:06:46]} 20... Qc5
{[%clk 0:46:51]} 21. Rb4 {[%clk 0:06:44]} 21... Qe3 {[%clk 0:45:06]} 22. f5
{[%clk 0:01:57]} 22... gxf5 {[%clk 0:44:14]} 23. exf5 {[%clk 0:01:39]} 23...
Bxf5 {[%clk 0:44:02]} 24. Qxf5 {[%clk 0:01:13]} 24... Qxe2 {[%clk 0:44:20]} 25.
a4 {[%clk 0:00:33]} 25... b5 {[%clk 0:31:58]} 26. cxb5 {[%clk 0:00:35]} 26...
Rxb5 {[%clk 0:30:34]} 27. Rg4+ {[%clk 0:00:33]} 27... Kh8 {[%clk 0:30:13]} 28.
Qf4 {[%clk 0:00:33]} 28... Rd5 {[%clk 0:27:39]} 29. h3 {[%clk 0:00:33]} 29...
Rd1+ {[%clk 0:26:26]} 30. Rxd1 {[%clk 0:00:55]} 30... Qxd1+ {[%clk 0:26:49]} 31.
Kh2 {[%clk 0:01:18]} 31... Qd5 {[%clk 0:26:54]} 32. Kh1 {[%clk 0:00:36]} 32...
Rb8 {[%clk 0:25:38]} 33. Rg5 {[%clk 0:00:34]} 33... Qe6 {[%clk 0:25:09]} 34. Kh2
{[%clk 0:00:33]} 34... f6 {[%clk 0:24:35]} 35. Rh5 {[%clk 0:00:33]} 35... Rg8
{[%clk 0:24:25]} 36. Qf3 {[%clk 0:00:37]} 36... d5 {[%clk 0:22:52]} 37. a5
{[%clk 0:00:37]} 37... Qd6+ {[%clk 0:22:46]} 38. Kh1 {[%clk 0:00:51]} 38... Qg3
{[%clk 0:21:24]} 39. Qe2 {[%clk 0:01:02]} 39... Rb8 {[%clk 0:17:50]} 40. Qc2
{[%clk 0:00:51]} 40... Qg7 {[%clk 0:16:47]} 41. a6 {[%clk 0:00:33]} 41... e5
{[%clk 0:16:51]} 42. Qf5 {[%clk 0:00:32]} 42... Rb2 {[%clk 0:16:01]} 43. Qf3
{[%clk 0:00:33]} 43... Ra2 {[%clk 0:14:09]} 44. Qf1 {[%clk 0:00:39]} 44... e4
{[%clk 0:06:24]} 45. Rf5 {[%clk 0:00:34]} 45... e3 {[%clk 0:02:20]} 46. Rxf6
{[%clk 0:00:35]} 46... Qe7 {[%clk 0:02:30]} 47. Qb1 {[%clk 0:00:33]} 47... Qxf6
{[%clk 0:01:52]} 48. Qxa2 {[%clk 0:00:53]} 48... Qf1+ {[%clk 0:02:06]} 49. Kh2
{[%clk 0:01:13]} 49... e2 {[%clk 0:02:26]} 50. Qd2 {[%clk 0:00:44]} 50... e1=Q
{[%clk 0:02:09]} 51. Qd4+ {[%clk 0:01:06]} 51... Kg8 {[%clk 0:02:32]} 52. Qg4+
{[%clk 0:01:23]} 52... Kf8 {[%clk 0:01:59]} 53. Qb4+ {[%clk 0:01:22]} 53... Kf7
{[%clk 0:01:46]} 54. Qb7+ {[%clk 0:01:25]} 54... Qe7 {[%clk 0:02:06]} 55. Qb8
{[%clk 0:01:40]} 55... Qxa6 {[%clk 0:02:16]} 56. Qf4+ {[%clk 0:02:04]} 56... Qf6
{[%clk 0:02:37]} 57. Qc7+ {[%clk 0:02:29]} 57... Kg6 {[%clk 0:02:16]} 58. Qg3+
{[%clk 0:02:52]} 58... Kf7 {[%clk 0:02:25]} 59. Qc7+ {[%clk 0:03:15]} 59... Qe7
{[%clk 0:02:45]} 60. Qf4+ {[%clk 0:03:33]} 60... Ke8 {[%clk 0:03:06]} 61. Qb8+
{[%clk 0:03:51]} 61... Kd7 {[%clk 0:03:21]} 62. Qb1 {[%clk 0:03:56]} 62... Kc7
{[%clk 0:02:18]} 63. Kh1 {[%clk 0:04:15]} 63... Qae2 {[%clk 0:02:40]} 0-1

[Variant "Standard"]
[Site "Europe Echecs"]